bitfinex-derivatives/quotes_SOLF0:USTF0_20240824
["timestamp","ask_amount","ask_price","bid_price","bid_amount"]
[1724505800443,2.521,157.5,157.44,10.9843]
[1724505800973,3.1739,157.47,157.44,7.81]
[1724505801345,3.219217,157.47,157.44,7.85648695]
[1724505801740,3.174,157.46,157.44,7.85648695]
[1724505802542,3.174,157.46,157.44,0.04648695]
[1724505806149,0.045317,157.47,157.44,0.04648695]
[1724505807046,3.1741,157.46,157.44,0.04648695]
[1724505807248,7.81,157.45,157.38,7.81]
[1724505807448,7.81,157.44,157.38,7.81]
[1724505807941,3.1749,157.42,157.39,3.1752]
[1724505808346,3.2219835,157.42,157.39,3.21608047]
[1724505818054,3.2219835,157.42,157.4,7.81]
[1724505818055,0.0470835,157.42,157.4,7.81]
[1724505818858,0.0470835,157.42,157.4,10.985]
[1724505820962,0.0470835,157.42,157.4,3.175]
[1724505821262,0.0470835,157.42,157.4,10.985]
[1724505823456,3.2217835,157.42,157.4,3.175]
[1724505823966,3.2217835,157.42,157.39,3.21618047]
[1724505824152,3.175,157.41,157.39,3.21618047]
[1724505825366,0.0470835,157.42,157.39,3.21618047]
[1724505825367,3.2218835,157.42,157.39,3.21618047]
[1724505828757,0.0470835,157.42,157.39,0.04088047]
[1724505829565,3.2218835,157.42,157.39,3.21608047]
[1724505837577,0.0470835,157.42,157.39,0.04088047]
[1724505838275,3.1751,157.4,157.39,0.04088047]
[1724505840574,3.1751,157.41,157.39,0.04088047]
[1724505840879,0.0470835,157.42,157.39,7.85088047]
[1724505841875,3.2219835,157.42,157.39,11.02608047]
[1724505843973,3.175,157.41,157.39,7.85088047]
[1724505844381,0.0470835,157.42,157.39,7.85088047]
[1724505844782,3.175,157.41,157.39,7.85088047]
[1724505844982,0.0470835,157.42,157.4,7.81]
[1724505846384,0.0470835,157.42,157.41,7.81]
[1724505847387,0.0470835,157.42,157.41,10.9849]
[1724505847686,79.58671924,157.52,157.41,10.92604746]
[1724505847985,79.58671924,157.52,157.46,3.1739]
[1724505847986,3.1732,157.5,157.46,3.1739]
[1724505848186,7.81,157.52,157.46,3.1739]
[1724505848385,7.81,157.52,157.47,7.81]
[1724505848687,3.1735,157.49,157.48,0.0484935]
[1724505850594,3.1732,157.5,157.48,0.0484935]
[1724505850789,0.04253132,157.51,157.48,0.0484935]
[1724505852297,3.21563132,157.51,157.48,3.2219935]
[1724505852786,3.21563132,157.51,157.48,7.8584935]
[1724505852787,0.04253132,157.51,157.48,7.8584935]
[1724505853185,0.04253132,157.51,157.48,11.0318935]
[1724505854282,3.21553132,157.51,157.48,11.0318935]
[1724505858992,0.04253132,157.51,157.5,7.81]
[1724505862398,3.21543132,157.51,157.5,7.81]
[1724505862999,0.04253132,157.51,157.5,7.81]
[1724505863893,3.21543132,157.51,157.5,7.81]
[1724505864097,3.21543132,157.51,157.48,3.2219935]
[1724505865998,3.1732,157.5,157.48,0.0484935]
[1724505867696,3.21553132,157.51,157.49,7.81]
[1724505868001,0.04253132,157.51,157.49,7.81]
[1724505868202,0.04253132,157.51,157.5,7.81]
[1724505870500,0.04253132,157.51,157.5,10.9831]
[1724505871725,70.43675032,157.59,157.53,3.1725]
[1724505871897,70.43675032,157.59,157.53,10.9825]
[1724505872399,3.1721,157.56,157.53,10.9825]
[1724505872800,3.21291329,157.56,157.53,11.02930181]
[1724505873097,3.1721,157.55,157.53,0.04680181]
[1724505873301,7.85081329,157.56,157.53,0.04680181]
[1724505873599,3.1721,157.55,157.53,0.04680181]
[1724505873801,0.04081329,157.56,157.53,0.04680181]
[1724505875307,3.1723,157.54,157.53,0.04680181]
[1724505880599,3.1722,157.55,157.53,0.04680181]
[1724505880806,3.1722,157.55,157.53,7.85680181]
[1724505882306,3.1722,157.55,157.53,11.02930181]
[1724505883207,3.1722,157.55,157.53,7.85680181]
[1724505885902,3.1722,157.55,157.53,11.02930181]
[1724505886605,3.1722,157.55,157.53,0.04680181]
[1724505887311,3.21281329,157.56,157.53,0.04680181]
[1724505888508,3.21281329,157.56,157.53,3.21930181]
[1724505890007,3.1721,157.55,157.53,3.21930181]
[1724505890412,0.04081329,157.56,157.53,0.04680181]
[1724505890910,3.1723,157.54,157.53,0.04680181]
[1724505892302,3.21291329,157.56,157.53,0.04680181]
[1724505892709,3.21291329,157.56,157.53,3.21920181]
[1724505893312,0.04081329,157.56,157.54,3.1723]
[1724505894313,0.04081329,157.56,157.55,10.9821]
[1724505894818,3.171,157.61,157.57,3.1717]
[1724505895116,69.89176934,157.62,157.59,7.81]
[1724505895711,69.89176934,157.62,157.59,7.85112492]
[1724505895910,69.91379797,157.62,157.59,7.85112492]
[1724505896112,3.1711,157.6,157.59,0.04112492]
[1724505898409,3.1718,157.57,157.53,7.81]
[1724505898817,3.1718,157.57,157.37,12.08893289]
[1724505898818,7.81,157.56,157.37,3.24478766]
[1724505899023,3.1723,157.54,157.49,7.81]
[1724505899209,7.81,157.56,157.49,7.81]
[1724505899613,3.21747994,157.54,157.51,0.04859871]
[1724505900221,0.04497994,157.54,157.51,0.04859871]
[1724505900708,0.04497994,157.54,157.51,3.22149871]
[1724505900911,3.1725,157.53,157.51,0.04859871]
[1724505904723,7.81,157.53,157.51,0.04859871]
[1724505905218,3.1727,157.52,157.51,0.04859871]
[1724505905921,3.1726,157.53,157.51,0.04859871]
[1724505906225,0.04497994,157.54,157.51,0.04859871]
[1724505906717,0.04497994,157.54,157.51,7.85859871]
[1724505907025,3.21737994,157.54,157.51,7.85859871]
[1724505907224,0.04497994,157.54,157.53,10.9825]
[1724505908915,0.04497994,157.54,157.53,3.1725]
[1724505909125,0.04497994,157.54,157.53,10.9825]
[1724505909323,1.3379,157.63,157.55,3.1721]
[1724505909522,77.70176934,157.62,157.55,10.9821]
[1724505909714,3.1717,157.58,157.55,7.81]
[1724505910324,3.1718,157.57,157.55,7.8504933]
[1724505911625,3.1718,157.57,157.55,0.0404933]
[1724505912834,3.1719,157.56,157.55,0.0404933]
[1724505913029,7.81,157.6,157.55,0.0404933]
[1724505913422,3.1719,157.57,157.55,0.0404933]
[1724505915027,3.1719,157.56,157.55,0.0404933]
[1724505923830,7.81,157.61,157.55,7.8504933]
[1724505925131,3.1719,157.56,157.55,7.8504933]
[1724505925667,3.1719,157.56,157.55,0.0404933]
[1724505931630,10.9819,157.56,157.55,0.0404933]
[1724505932130,7.81,157.56,157.47,47.70483078]
[1724505932332,7.81,157.52,157.48,3.11349333]
[1724505932547,31.24,157.56,157.45,9.0528]
[1724505932548,7.81,157.51,157.45,1.2428]
[1724505932736,7.81,157.5,157.44,25.38]
[1724505933031,3.1737,157.48,157.45,3.15996152]
[1724505933332,3.1737,157.48,157.45,0.04606174]
[1724505933726,0.04446994,157.49,157.45,0.04606174]
[1724505933938,7.81,157.48,157.45,0.04606174]
[1724505934542,7.81,157.46,157.45,0.04606174]
[1724505935334,10.9839,157.46,157.45,0.04606174]
[1724505938144,3.1739,157.46,157.45,0.04606174]
[1724505938341,3.1738,157.47,157.45,0.04606174]
[1724505939640,0.04446994,157.49,157.45,7.85606174]
[1724505940146,3.1736,157.48,157.45,11.03006174]
[1724505942351,0.04446994,157.49,157.46,10.9839]
[1724505942651,0.04446994,157.49,157.45,0.04606174]
[1724505942652,0.04446994,157.49,157.48,7.81]
[1724505942948,1.2907,157.57,157.48,7.81]
[1724505943256,2.6136,157.61,157.52,7.81]
[1724505943461,7.81,157.59,157.41,7.7048]
[1724505943751,7.81,157.56,157.49,7.81]
[1724505943955,3.1725,157.54,157.51,0.04292054]
[1724505944153,7.81,157.56,157.51,0.04292054]
[1724505944658,3.1725,157.54,157.51,0.04292054]
[1724505945157,3.1725,157.54,157.5,10.9831]
[1724505945455,3.1725,157.54,157.51,0.04473648]
[1724505946053,7.81,157.54,157.51,0.04473648]
[1724505946452,7.81,157.53,157.51,0.04473648]
[1724505946757,3.1727,157.52,157.51,0.04473648]
[1724505947354,3.1736,157.48,157.44,10.9843]
[1724505947852,3.1736,157.48,157.45,3.1741]
[1724505948254,3.1736,157.48,157.44,7.81]
[1724505948478,3.21754442,157.48,157.45,0.04374331]
[1724505951156,0.04394442,157.48,157.45,0.04374331]
[1724505951959,19.53394442,157.48,157.45,0.04374331]
[1724505952362,3.1739,157.46,157.45,0.04374331]
[1724505955661,3.1738,157.47,157.45,0.04374331]
[1724505955864,0.04394442,157.48,157.45,0.04374331]
[1724505956262,3.21764442,157.48,157.45,3.21784331]
[1724505956569,3.21764442,157.48,157.45,0.04374331]
[1724505957972,0.04394442,157.48,157.45,0.04374331]
[1724505959159,0.04394442,157.48,157.46,3.1739]
[1724505960269,0.04394442,157.48,157.45,19.53374331]
[1724505960763,0.04394442,157.48,157.46,3.1738]
[1724505961161,0.04394442,157.48,157.45,19.53374331]
[1724505961367,0.04394442,157.48,157.47,3.1737]
[1724505962070,0.04394442,157.48,157.46,3.1739]
[1724505964277,3.21754442,157.48,157.45,22.70784331]
[1724505966302,3.21754442,157.48,157.46,3.1739]
[1724505967476,0.04394442,157.48,157.47,22.6637]
[1724505967975,2.5991,157.61,157.5,3.173]
[1724505968172,20.8079,157.57,157.5,3.173]
[1724505968370,20.8079,157.57,157.47,20.8274]
[1724505968570,19.49,157.57,157.49,19.49]
[1724505968775,2.5991,157.61,157.51,3.1729]
[1724505968776,3.1725,157.54,157.51,3.1729]
[1724505968977,19.49,157.57,157.51,0.04444581]
[1724505969172,19.49,157.57,157.52,0.04259558]
[1724505970281,3.1727,157.53,157.52,0.04259558]
[1724505971279,7.8,157.54,157.52,0.04259558]
[1724505971280,3.1724,157.54,157.52,0.04259558]
[1724505971579,7.8,157.56,157.52,0.04259558]
[1724505972474,7.8,157.57,157.52,3.21529558]
[1724505973278,2.5991,157.61,157.53,3.1725]
[1724505973477,2.5991,157.61,157.55,0.0474854]
[1724505973677,7.8,157.58,157.55,0.0474854]
[1724505974086,3.1721,157.56,157.55,0.0474854]
[1724505978384,10.9721,157.56,157.55,0.0474854]
[1724505983090,3.1721,157.56,157.55,0.0474854]
[1724505987887,1.2649,157.61,157.55,0.0474854]
[1724505988086,1.2649,157.61,157.55,11.0194854]
[1724505988394,23.12615146,157.62,157.56,38.49638112]
[1724505988590,3.1715,157.58,157.57,38.49638112]
[1724505988891,7.8,157.64,157.57,46.29638112]
[1724505989098,7.8,157.64,157.59,0.04525803]
[1724505989595,3.1709,157.61,157.6,5.63681723]
[1724505989789,7.8,157.63,157.59,0.04525803]
[1724505990188,3.1711,157.6,157.59,0.04525803]
[1724505991694,7.8,157.63,157.59,0.04525803]
[1724505992394,3.1711,157.6,157.59,0.04525803]
[1724505998999,3.171,157.61,157.59,0.04525803]
[1724505999605,3.1711,157.6,157.59,0.04525803]
[1724506014322,3.171,157.61,157.59,0.04525803]
[1724506014513,3.171,157.61,157.59,7.84525803]
[1724506014724,3.1702,157.65,157.6,7.8]
[1724506014915,3.1702,157.65,157.59,0.04525803]
[1724506014916,3.1702,157.65,157.62,7.8]
[1724506015213,3.1704,157.64,157.62,7.8]
[1724506015421,3.1704,157.64,157.61,0.04099098]
[1724506017222,7.8,157.64,157.61,0.04099098]
[1724506017820,3.1707,157.63,157.61,0.04099098]
[1724506019815,3.1707,157.62,157.61,0.04099098]
[1724506023123,2.6622,157.68,157.61,0.04099098]
[1724506023328,7.8,157.66,157.61,0.04099098]
[1724506024329,3.1706,157.63,157.61,0.04099098]
[1724506030329,3.1703,157.64,157.61,3.21189098]
[1724506032025,70.3909483,157.68,157.62,3.1706]
[1724506032528,3.1702,157.65,157.61,3.21179098]
[1724506032724,3.1702,157.65,157.61,11.01179098]
[1724506033128,3.1702,157.65,157.62,3.1707]
[1724506034430,3.1704,157.64,157.61,11.01179098]
[1724506036328,3.1704,157.64,157.61,3.21179098]
[1724506036535,70.3909483,157.68,157.61,0.04099098]
[1724506037132,3.1705,157.64,157.61,3.21179098]
[1724506037928,7.8,157.64,157.61,0.04099098]
[1724506038230,7.8,157.63,157.61,0.04099098]
[1724506038534,3.1707,157.62,157.61,0.04099098]
[1724506039530,10.9707,157.62,157.61,0.04099098]
[1724506040930,3.1713,157.59,157.55,3.1721]
[1724506041128,10.9713,157.59,157.55,3.1721]
[1724506041327,7.8,157.59,157.53,2.5924]
[1724506042135,7.8,157.59,157.54,0.04797216]
[1724506043338,3.1717,157.58,157.54,3.22027216]
[1724506044338,3.1717,157.57,157.54,0.04797216]
[1724506044633,10.9717,157.57,157.54,0.04797216]
[1724506045237,3.1717,157.57,157.54,0.04797216]
[1724506045433,3.1717,157.57,157.54,3.22027216]
[1724506048134,3.1715,157.58,157.54,3.22027216]
[1724506048335,3.1715,157.58,157.55,7.8]
[1724506049448,0.04371401,157.6,157.56,10.9718]
[1724506051442,3.21481401,157.6,157.56,10.9718]
[1724506052038,0.04371401,157.6,157.57,3.1716]
[1724506052238,0.04371401,157.6,157.58,7.8]
[1724506052442,0.04371401,157.6,157.59,7.8]
[1724506052737,0.04371401,157.6,157.59,10.9713]
[1724506054946,7.8,157.67,157.59,7.8]
[1724506055149,7.8,157.67,157.61,7.8]
[1724506055449,3.1702,157.65,157.61,7.8]
[1724506055652,7.8,157.67,157.61,10.9708]
[1724506055849,7.8,157.67,157.62,0.0401824]
[1724506056349,3.1702,157.65,157.62,0.0401824]
[1724506058350,3.17,157.66,157.63,3.1705]
[1724506058741,3.1697,157.67,157.64,3.1703]
[1724506058947,62.5909483,157.68,157.63,7.8]
[1724506059948,3.1697,157.67,157.63,10.9704]
[1724506062848,3.17,157.66,157.62,3.2106824]
[1724506063247,3.1702,157.65,157.62,3.2106824]
[1724506064252,3.1703,157.64,157.62,0.0401824]
[1724506065445,3.1705,157.63,157.62,0.0401824]
[1724506066341,10.9705,157.63,157.62,0.0401824]
[1724506069271,3.1705,157.63,157.62,0.0401824]
[1724506082157,3.1702,157.65,157.62,3.2108824]
[1724506082372,3.1702,157.65,157.62,0.0401824]
[1724506083759,3.17,157.66,157.62,3.2107824]
[1724506084458,70.3909483,157.68,157.62,3.2107824]
[1724506084459,3.1701,157.65,157.62,3.2107824]
[1724506090653,3.1703,157.64,157.62,0.0401824]
[1724506092162,10.9705,157.63,157.62,0.0401824]
[1724506093658,3.1705,157.63,157.62,0.0401824]
[1724506096065,62.5909483,157.68,157.62,0.0401824]
[1724506096265,7.8,157.65,157.62,0.0401824]
[1724506097791,3.1704,157.64,157.62,0.0401824]
[1724506101276,3.1705,157.63,157.62,0.0401824]
[1724506107677,10.9705,157.63,157.62,0.0401824]
[1724506108679,3.1705,157.63,157.62,0.0401824]
[1724506110179,3.1703,157.64,157.62,0.0401824]
[1724506118182,1.3413,157.71,157.63,7.8]
[1724506118481,7.8,157.69,157.65,0.04064924]
[1724506118880,1.3413,157.71,157.65,0.04064924]
[1724506119084,7.8,157.69,157.65,0.04064924]
[1724506119284,7.8,157.7,157.65,0.04064924]
[1724506119988,3.1697,157.67,157.65,0.04064924]
[1724506129993,3.1696,157.68,157.65,3.21064924]
[1724506132706,3.10604618,157.73,157.65,0.04064924]
[1724506132707,3.1697,157.67,157.65,0.04064924]
[1724506140614,3.1694,157.69,157.66,3.1699]
[1724506140916,7.8,157.72,157.65,7.84064924]
[1724506141617,3.1694,157.69,157.65,11.01064924]
[1724506144716,7.8,157.72,157.65,11.01064924]
[1724506144717,3.1695,157.68,157.65,11.01064924]
[1724506145419,3.1695,157.68,157.66,3.1699]
[1724506147235,1.3391,157.75,157.67,7.8]
[1724506147429,9.1391,157.75,157.69,0.04501688]
[1724506149525,3.1688,157.72,157.69,3.21431688]
[1724506151423,3.1688,157.72,157.69,0.04501688]
[1724506152226,3.1689,157.71,157.69,0.04501688]
[1724506161837,3.1691,157.7,157.69,0.04501688]
[1724506162535,10.9691,157.7,157.69,0.04501688]
[1724506165542,1.3391,157.75,157.69,0.04501688]
[1724506165741,7.8,157.72,157.69,0.04501688]
[1724506165939,1.3391,157.75,157.69,0.04501688]
[1724506165940,7.8,157.7,157.69,0.04501688]
[1724506166538,10.9691,157.7,157.69,0.04501688]
[1724506167139,3.1699,157.67,157.63,10.9705]
[1724506167333,3.1699,157.67,157.64,3.04268837]
[1724506167532,7.8,157.68,157.63,7.8]
[1724506167727,3.1697,157.67,157.64,3.04303032]
[1724506167926,7.8,157.67,157.61,1.353]
[1724506168135,7.84012379,157.67,157.64,0.04418519]
[1724506168342,10.9701,157.65,157.64,0.04418519]
[1724506169636,3.1711,157.6,157.56,1.2848]
[1724506170065,7.8,157.58,157.49,25.36]
[1724506170239,10.9715,157.58,157.57,3.04735209]
[1724506170636,10.9715,157.58,157.56,0.04150845]
[1724506170839,3.1717,157.57,157.56,0.04150845]
[1724506172042,3.1716,157.58,157.56,0.04150845]
[1724506173946,0.04858081,157.59,157.56,0.04150845]
[1724506175442,3.1715,157.58,157.56,0.04150845]
[1724506180647,3.1717,157.57,157.56,0.04150845]
[1724506180847,10.9717,157.57,157.56,0.04150845]
[1724506181847,3.1717,157.57,157.56,0.04150845]
[1724506182049,3.1716,157.58,157.56,0.04150845]
[1724506182555,3.1717,157.57,157.56,0.04150845]
[1724506187051,0.04858081,157.59,157.57,3.1717]
[1724506192558,0.04858081,157.59,157.56,0.04150845]
[1724506193763,3.22008081,157.59,157.56,0.04150845]
[1724506194761,3.1715,157.58,157.56,0.04150845]
[1724506195661,0.04858081,157.59,157.56,3.21340845]
[1724506197562,3.1715,157.58,157.56,3.21340845]
[1724506198355,3.1715,157.58,157.56,0.04150845]
[1724506198559,3.1717,157.57,157.56,0.04150845]
[1724506201459,10.9717,157.57,157.56,0.04150845]
[1724506205066,7.84858081,157.59,157.56,0.04150845]
[1724506205969,3.1716,157.58,157.56,0.04150845]
[1724506207266,3.1717,157.57,157.56,0.04150845]
[1724506211369,3.1716,157.58,157.56,0.04150845]
[1724506211873,3.1717,157.57,157.56,0.04150845]
[1724506212976,10.9717,157.57,157.56,0.04150845]
[1724506213587,3.1728,157.52,157.47,1.262]
[1724506213770,7.8,157.53,157.47,1.262]
[1724506214173,7.8,157.52,157.47,1.262]
[1724506214373,7.8,157.5,157.46,1.3523]
[1724506214575,7.8,157.5,157.47,3.1735]
[1724506214778,7.84579585,157.5,157.46,1.39578335]
[1724506215179,0.04579585,157.5,157.46,1.39578335]
[1724506215380,0.04579585,157.5,157.48,3.1734]
[1724506216271,7.8,157.49,157.46,0.04348335]
[1724506216480,7.8,157.47,157.46,0.04348335]
[1724506217382,10.9737,157.47,157.46,0.04348335]
[1724506218470,7.8,157.47,157.46,0.04348335]
[1724506218688,3.1737,157.48,157.46,0.04348335]
[1724506220682,3.1734,157.49,157.46,3.21738335]
[1724506221379,11.01899585,157.5,157.46,3.21738335]
[1724506222689,0.04579585,157.5,157.47,3.1737]
[1724506222874,0.04579585,157.5,157.46,0.04348335]
[1724506223589,7.8,157.48,157.46,0.04348335]
[1724506225822,7.8,157.47,157.46,0.04348335]
[1724506226487,7.8,157.47,157.37,1.3508]
[1724506226786,3.8911,157.52,157.37,1.3508]
[1724506226787,7.8,157.41,157.37,1.3508]
[1724506226982,7.8,157.41,157.38,3.1754]
[1724506227686,7.8,157.39,157.38,0.04786088]
[1724506229784,11.02089106,157.41,157.38,0.04786088]
[1724506230181,0.04589106,157.41,157.38,0.04786088]
[1724506230890,0.04589106,157.41,157.38,3.22326088]
[1724506231678,0.04589106,157.41,157.39,3.1753]
[1724506233888,0.04589106,157.41,157.38,0.04786088]
[1724506234094,3.22099106,157.41,157.38,0.04786088]
[1724506236088,3.1752,157.4,157.38,0.04786088]
[1724506236388,3.1751,157.4,157.38,0.04786088]
[1724506236987,0.04589106,157.41,157.38,0.04786088]
[1724506237796,3.1752,157.4,157.38,0.04786088]
[1724506238191,0.04589106,157.41,157.38,0.04786088]
[1724506239191,0.04589106,157.41,157.39,3.1752]
[1724506241687,0.04589106,157.41,157.38,0.04786088]
[1724506241891,3.22099106,157.41,157.38,0.04786088]
[1724506242089,19.51,157.4,157.38,0.04786088]
[1724506242686,22.6852,157.4,157.38,0.04786088]
[1724506242894,19.51,157.4,157.38,0.04786088]
[1724506243094,22.6853,157.39,157.38,0.04786088]
[1724506243290,19.51,157.39,157.33,1.3508]
[1724506244100,3.1758,157.37,157.34,3.1762]
[1724506244399,3.1758,157.37,157.34,3.22496048]
[1724506247704,0.04205862,157.38,157.37,3.1757]
[1724506251400,0.04205862,157.38,157.34,20.81416048]
[1724506251401,3.1747,157.43,157.39,3.1753]
[1724506251600,19.51,157.48,157.36,19.51]
[1724506251906,19.51,157.48,157.38,19.51]
[1724506252201,3.174,157.46,157.38,19.51]
[1724506252409,0.04863435,157.44,157.4,0.04315979]
[1724506252920,0.04863435,157.44,157.41,3.1748]
[1724506253414,0.04863435,157.44,157.4,0.04315979]
[1724506254499,0.04863435,157.44,157.43,19.51]
[1724506254804,19.51,157.52,157.43,19.51]
[1724506255306,19.51,157.52,157.46,3.1738]
[1724506255807,0.0451257,157.51,157.47,0.04104925]
[1724506256009,3.1731,157.5,157.47,0.04104925]
[1724506256307,0.0451257,157.51,157.47,19.55104925]
[1724506257298,0.0451257,157.51,157.5,3.1731]
[1724506260311,0.0451257,157.51,157.49,3.1732]
[1724506261509,0.0451257,157.51,157.5,3.1731]
[1724506263613,0.0451257,157.51,157.49,3.1733]
[1724506265128,0.0451257,157.51,157.47,0.04104925]
[1724506266407,0.0451257,157.51,157.49,3.1732]
[1724506268314,0.0451257,157.51,157.47,0.04104925]
[1724506269417,0.0451257,157.51,157.5,3.1731]
[1724506270715,3.1721,157.56,157.53,3.1725]
[1724506271622,3.1718,157.57,157.54,3.1723]
[1724506271810,3.1718,157.57,157.54,3.21770741]
[1724506271811,3.21488499,157.57,157.54,3.21770741]
[1724506274817,3.21488499,157.57,157.54,0.04540741]
[1724506276612,0.04308499,157.57,157.54,0.04540741]
[1724506278112,3.21498499,157.57,157.54,0.04540741]
[1724506279118,3.21498499,157.57,157.54,3.21770741]
[1724506281525,3.172,157.56,157.54,0.04540741]
[1724506282328,3.21488499,157.57,157.54,0.04540741]
[1724506282524,19.55308499,157.57,157.54,0.04540741]
[1724506282925,3.1721,157.56,157.54,0.04540741]
[1724506284427,10.9721,157.56,157.54,0.04540741]
[1724506285728,3.1721,157.56,157.54,0.04540741]
[1724506285918,3.21488499,157.57,157.54,3.21770741]
[1724506289828,0.04308499,157.57,157.55,3.1721]
[1724506290035,0.04308499,157.57,157.54,7.84540741]
[1724506290529,0.04308499,157.57,157.55,3.1721]
[1724506293031,0.04308499,157.57,157.56,3.1719]
[1724506293229,0.04308499,157.57,157.56,10.9719]
[1724506294937,3.1707,157.62,157.6,3.1711]
[1724506295535,3.1707,157.62,157.59,3.1713]
[1724506296037,3.21955085,157.62,157.59,3.21206902]
[1724506298634,0.04885085,157.62,157.6,3.1711]
[1724506299935,0.04885085,157.62,157.61,3.1709]
[1724506305443,1.2608,157.71,157.62,3.1705]
[1724506305641,3.1699,157.66,157.62,7.8]
[1724506306542,3.1698,157.67,157.62,7.84188917]
[1724506308438,3.1698,157.67,157.64,3.1703]
[1724506312053,3.1696,157.68,157.64,3.1703]
[1724506312242,3.1696,157.68,157.65,3.1701]
[1724506313054,3.1697,157.67,157.64,3.21204638]
[1724506315859,3.1696,157.68,157.65,3.1701]
[1724506316555,3.1696,157.68,157.66,3.1699]
[1724506317151,3.1694,157.69,157.66,3.1699]
[1724506321668,3.1691,157.7,157.66,7.8]
[1724506321865,3.1691,157.7,157.66,7.84378055]
[1724506322165,3.1688,157.72,157.69,3.1691]
[1724506322368,3.1688,157.72,157.69,3.21671346]
[1724506323263,3.1686,157.73,157.7,3.1691]
[1724506323569,3.1686,157.73,157.69,7.84761346]
[1724506323968,3.1686,157.73,157.7,3.169]
[1724506324157,3.1681,157.75,157.69,7.84761346]
[1724506324364,7.8,157.77,157.71,7.8]
[1724506324559,7.8,157.77,157.72,0.04115288]
[1724506324763,3.1681,157.75,157.72,0.04115288]
[1724506324965,7.8,157.77,157.72,0.04115288]
[1724506325366,3.1683,157.74,157.72,0.04115288]
[1724506326765,3.1685,157.73,157.72,0.04115288]
[1724506327465,3.1684,157.74,157.72,0.04115288]
[1724506329197,3.1682,157.75,157.72,0.04115288]
[1724506329366,2.585,157.81,157.73,7.8]
[1724506329367,7.8,157.79,157.73,7.8]
[1724506329571,2.585,157.81,157.74,0.0456925]
[1724506329770,10.9681,157.75,157.74,0.0456925]
[1724506330472,7.8,157.75,157.65,7.8]
[1724506330669,7.8,157.71,157.65,7.8]
[1724506331069,7.8,157.71,157.61,3.7966]
[1724506331070,7.8,157.69,157.64,3.1701]
[1724506331368,0.04268434,157.68,157.65,0.04505063]
[1724506331573,3.21228434,157.68,157.65,3.21515063]
[1724506331767,3.21228434,157.68,157.65,0.04505063]
[1724506332578,3.1698,157.67,157.65,0.04505063]
[1724506334468,3.21228434,157.68,157.65,0.04505063]
[1724506334672,0.04268434,157.68,157.65,3.21495063]
[1724506335864,3.21218434,157.68,157.65,3.21495063]
[1724506337075,0.04268434,157.68,157.66,3.1699]
[1724506337270,0.04268434,157.68,157.65,7.84505063]
[1724506337471,0.04268434,157.68,157.65,11.02256933]
[1724506338174,0.04268434,157.68,157.66,7.8]
[1724506338576,0.04268434,157.68,157.67,3.1697]
[1724506340776,0.04268434,157.68,157.66,3.1698]
[1724506340967,3.21218434,157.68,157.65,0.04505063]
[1724506341167,0.04268434,157.68,157.66,3.1699]
[1724506341379,0.04268434,157.68,157.65,0.04505063]
[1724506341780,0.04268434,157.68,157.66,3.1698]
[1724506341979,0.04268434,157.68,157.65,0.04505063]
[1724506343076,0.04268434,157.68,157.65,11.07572568]
[1724506343278,0.04268434,157.68,157.65,0.04505063]
[1724506343480,0.04268434,157.68,157.66,3.1698]
[1724506346081,0.04268434,157.68,157.67,3.1697]
[1724506356182,0.04268434,157.68,157.67,6.20878697]
[1724506356586,0.04268434,157.68,157.67,25.67878697]
[1724506357198,22.1102,157.77,157.72,3.1686]
[1724506357596,1.2998,157.77,157.69,19.47]
[1724506357794,19.47,157.79,157.7,3.03733605]
[1724506357994,19.47,157.79,157.69,19.47]
[1724506358297,19.47,157.79,157.72,0.04109012]
[1724506359198,22.0406,157.82,157.72,0.04109012]
[1724506359497,22.0406,157.82,157.75,0.04774572]
[1724506359898,19.47,157.8,157.75,0.04774572]
[1724506363192,3.1679,157.76,157.75,0.04774572]
[1724506364192,19.47,157.78,157.71,3.1688]
[1724506364403,7.79,157.75,157.71,3.1688]
[1724506364905,10.9582,157.75,157.71,3.1688]
[1724506365097,7.8337297,157.75,157.71,3.21531808]